bitfinex/quotes_BTCUSD_20250314
["timestamp","ask_amount","ask_price","bid_price","bid_amount"]
[1741918580964,0.244038,81955.0,81952.0,0.00572627]
[1741918581182,0.244038,81955.0,81949.0,0.256255]
[1741918581403,0.27537144,81955.0,81953.0,0.00572627]
[1741918581634,0.27537144,81955.0,81950.0,0.001]
[1741918582054,0.27537144,81955.0,81951.0,0.00572627]
[1741918582262,0.256242,81954.0,81951.0,0.00572627]
[1741918582487,0.012202,81953.0,81951.0,0.00572627]
[1741918582689,0.256247,81953.0,81951.0,0.00572627]
[1741918582914,0.256247,81953.0,81950.0,0.001]
[1741918582915,0.55625,81951.0,81950.0,0.001]
[1741918583117,0.55625,81951.0,81949.0,0.13888]
[1741918583336,0.312202,81950.0,81949.0,0.13888]
[1741918583550,0.25628,81942.0,81936.0,0.244092]
[1741918583757,0.244071,81944.0,81937.0,0.395171]
[1741918583958,0.012202,81948.0,81942.0,0.244074]
[1741918584244,0.256263,81947.0,81941.0,0.256278]
[1741918584604,0.256263,81947.0,81942.0,0.00572627]
[1741918584993,0.256269,81945.0,81942.0,0.00572627]
[1741918585197,0.012203,81944.0,81942.0,0.00572627]
[1741918585406,0.256269,81945.0,81940.0,0.256284]
[1741918585603,0.256269,81945.0,81943.0,0.00572627]
[1741918585800,0.25616799,81945.0,81942.0,0.002]
[1741918586060,0.25616799,81945.0,81944.0,0.00572627]
[1741918586507,0.27530185,81945.0,81941.0,0.002]
[1741918586708,0.27530185,81945.0,81942.0,0.00572627]
[1741918586923,0.01913386,81945.0,81944.0,0.244069]
[1741918587134,0.01913386,81945.0,81944.0,0.256272]
[1741918587336,0.01913386,81945.0,81944.0,0.26499827]
[1741918587557,0.01913386,81945.0,81944.0,0.26199827]
[1741918588006,0.26319986,81945.0,81944.0,0.00572627]
[1741918588203,0.27540286,81945.0,81944.0,0.00572627]
[1741918588452,0.27540286,81945.0,81944.0,0.003]
[1741918588630,0.27540286,81945.0,81944.0,0.006]
[1741918588833,0.27540286,81945.0,81944.0,0.01171845]
[1741918590216,0.27540286,81945.0,81944.0,0.006]
[1741918591222,0.01913386,81945.0,81944.0,0.006]
[1741918591419,0.01913386,81945.0,81944.0,0.02391623]
[1741918591630,0.01913386,81945.0,81944.0,0.10171623]
[1741918592447,0.01913386,81945.0,81944.0,0.09871623]
[1741918592693,0.01913386,81945.0,81944.0,0.10271623]
[1741918592891,0.256237,81955.0,81949.0,0.012202]
[1741918593096,0.01950098,81958.0,81953.0,0.244042]
[1741918593272,0.01950098,81958.0,81954.0,0.14459323]
[1741918593488,0.256228,81958.0,81954.0,0.14459323]
[1741918593836,0.256234,81957.0,81954.0,0.14459323]
[1741918594040,0.012201,81956.0,81954.0,0.14459323]
[1741918594592,0.012369,81961.0,81954.0,0.14459323]
[1741918594792,0.012201,81959.0,81954.0,0.14459323]
[1741918595056,0.256231,81958.0,81954.0,0.14459323]
[1741918595401,0.256231,81958.0,81954.0,0.14759323]
[1741918595803,0.256231,81958.0,81954.0,0.14459323]
[1741918596009,0.256231,81958.0,81954.0,0.14659323]
[1741918596428,0.256231,81958.0,81954.0,0.14959323]
[1741918596975,0.01899275,81959.0,81955.0,0.256237]
[1741918597107,0.01899275,81959.0,81955.0,0.012201]
[1741918597311,0.012201,81959.0,81954.0,0.153081]
[1741918597518,0.03132812,81959.0,81955.0,0.00571323]
[1741918597914,0.01912712,81959.0,81955.0,0.01791423]
[1741918598125,0.01912712,81959.0,81955.0,0.26194723]
[1741918598367,0.03866153,81959.0,81955.0,0.26394723]
[1741918598618,0.01912712,81959.0,81956.0,0.256231]
[1741918598903,0.01912712,81959.0,81957.0,0.012201]
[1741918599103,0.01912712,81959.0,81958.0,0.00571323]
[1741918599281,0.244033,81956.0,81955.0,0.004]
[1741918599445,0.244033,81956.0,81955.0,0.00971323]
[1741918599651,0.012201,81957.0,81955.0,0.00971323]
[1741918599851,0.256231,81957.0,81955.0,0.00771323]
[1741918600053,0.256231,81957.0,81956.0,0.002]
[1741918600594,0.256231,81957.0,81956.0,0.00571323]
[1741918601108,0.256231,81957.0,81956.0,0.00771323]
[1741918601287,0.256231,81957.0,81956.0,0.00971323]
[1741918601491,0.256231,81957.0,81956.0,0.00771323]
[1741918601695,0.256231,81957.0,81956.0,0.01071323]
[1741918602094,0.24009053,81959.0,81956.0,0.01071323]
[1741918602499,0.256231,81957.0,81956.0,0.01071323]
[1741918602870,0.012201,81957.0,81956.0,0.01071323]
[1741918603063,0.012201,81957.0,81956.0,0.00871323]
[1741918603369,0.26401985,81959.0,81956.0,0.01071323]
[1741918603822,0.26401985,81959.0,81956.0,0.00871323]
[1741918604267,0.02392932,81959.0,81956.0,0.00771323]
[1741918604461,0.02392932,81959.0,81956.0,0.00571323]
[1741918604664,0.000169,81961.0,81957.0,0.0781]
[1741918604926,0.000169,81961.0,81958.0,0.0056966]
[1741918605331,0.0001691,81959.0,81958.0,0.0056966]
[1741918606024,0.02383064,81959.0,81958.0,0.0178976]
[1741918606462,0.0001691,81959.0,81958.0,0.0178976]
[1741918607069,0.0001691,81959.0,81958.0,0.0198976]
[1741918607630,0.0001691,81959.0,81958.0,0.0218976]
[1741918608001,0.02485835,81959.0,81958.0,0.0218976]
[1741918608575,0.0001691,81959.0,81958.0,0.0218976]
[1741918608808,0.0001691,81959.0,81958.0,0.02311758]
[1741918609042,0.0001691,81959.0,81958.0,0.0218976]
[1741918609461,0.0001691,81959.0,81958.0,0.02311759]
[1741918609671,0.0001691,81959.0,81958.0,0.0218976]
[1741918609893,0.0001691,81959.0,81958.0,0.02311758]
[1741918610130,0.0001691,81959.0,81958.0,0.0178976]
[1741918610324,0.0001691,81959.0,81958.0,0.0258976]
[1741918611883,0.0001691,81959.0,81958.0,0.02711759]
[1741918612518,0.0001691,81959.0,81958.0,0.0258976]
[1741918613202,0.0001691,81959.0,81958.0,0.8008176]
[1741918617859,0.0001691,81959.0,81958.0,0.8011558]
[1741918631251,0.0001691,81959.0,81958.0,0.9399558]
[1741918637640,0.0001691,81959.0,81958.0,1.0176558]
[1741918638270,0.0001691,81959.0,81958.0,1.0641558]
[1741918638478,0.0001691,81959.0,81958.0,1.0601558]
[1741918638632,0.0001691,81959.0,81958.0,1.0561558]
[1741918638846,0.0001691,81959.0,81958.0,1.0651558]
[1741918639242,0.0001691,81959.0,81958.0,1.0561558]
[1741918639645,0.0001691,81959.0,81958.0,1.0621558]
[1741918640451,0.0001691,81959.0,81958.0,1.0681558]
[1741918641936,0.0001691,81959.0,81958.0,1.4876558]
[1741918649375,0.0001691,81959.0,81958.0,1.3488558]
[1741918649580,0.0001691,81959.0,81958.0,1.6539828]
[1741918652848,0.0001691,81959.0,81958.0,1.7294828]
[1741918653493,0.0001691,81959.0,81958.0,1.7408681]
[1741918657911,0.0001691,81959.0,81958.0,1.2360411]
[1741918658123,0.0001691,81959.0,81958.0,1.3748011]
[1741918659434,0.0001691,81959.0,81958.0,1.3688011]
[1741918659645,0.0001691,81959.0,81958.0,1.4457011]
[1741918659856,0.0001691,81959.0,81958.0,1.4343158]
[1741918660052,0.0001691,81959.0,81958.0,1.4403158]
[1741918660943,0.0001691,81959.0,81958.0,1.4463158]
[1741918664138,0.44766695,81980.0,81960.0,0.012201]
[1741918664366,0.256196,81968.0,81961.0,0.0122]
[1741918664576,0.256205,81966.0,81962.0,0.00563817]
[1741918664990,0.256205,81966.0,81961.0,0.256218]
[1741918665200,0.012199,81968.0,81962.0,0.26184532]
[1741918666328,0.012199,81968.0,81962.0,0.00563332]
[1741918666541,0.244011,81964.0,81962.0,0.00563332]
[1741918666778,0.0122,81963.0,81962.0,0.00963332]
[1741918666981,0.0122,81963.0,81962.0,0.14276]
[1741918667539,0.0122,81963.0,81962.0,0.13876]
[1741918667746,0.0122,81963.0,81962.0,0.14376]
[1741918667924,0.0122,81963.0,81962.0,0.14976]
[1741918669319,0.33132469,81963.0,81962.0,0.006]
[1741918669523,0.47391609,81963.0,81962.0,0.011]
[1741918669742,0.49773497,81963.0,81962.0,0.005]
[1741918669969,0.49773497,81963.0,81962.0,1e-06]
[1741918670176,0.53953497,81963.0,81962.0,1e-06]
[1741918670408,0.556269,81945.0,81933.0,0.77484]
[1741918670601,0.678369,81945.0,81933.0,0.9136]
[1741918671234,0.69750023,81945.0,81936.0,0.24409]
[1741918671439,0.57540023,81945.0,81935.0,0.012204]
[1741918671648,0.57540023,81945.0,81933.0,1.169904]
[1741918672313,0.57540023,81945.0,81933.0,0.9136]
[1741918673369,0.57540023,81945.0,81944.0,0.0033382]
[1741918674032,0.57540023,81945.0,81944.0,0.0063382]
[1741918674254,0.57540023,81945.0,81944.0,0.0003382]
[1741918674570,0.57540023,81945.0,81944.0,0.0013382]
[1741918675299,0.57540023,81945.0,81944.0,0.0023382]
[1741918686233,0.69536112,81945.0,81944.0,0.0023382]
[1741918686748,0.57540023,81945.0,81944.0,0.0023382]
[1741918692543,0.65480023,81945.0,81944.0,0.0023382]
[1741918693224,0.66934108,81945.0,81944.0,0.0023382]
[1741918694743,0.58994108,81945.0,81944.0,0.0023382]
[1741918695801,0.58994108,81945.0,81944.0,0.0013382]
[1741918696002,0.58994108,81945.0,81944.0,0.0003382]
[1741918696003,0.59094108,81945.0,81944.0,0.0003382]
[1741918696255,0.71290197,81945.0,81944.0,0.0003382]
[1741918696608,0.71190197,81945.0,81944.0,0.0003382]
[1741918696806,0.71290197,81945.0,81944.0,0.0003382]
[1741918699903,0.78810197,81945.0,81944.0,2e-07]
[1741918700115,0.78810197,81945.0,81921.0,0.000338]
[1741918700116,0.55634,81922.0,81921.0,0.000338]
[1741918700544,0.55634,81922.0,81921.0,0.00580451]
[1741918700794,0.55634,81922.0,81921.0,0.000338]
[1741918701228,0.55634,81922.0,81921.0,0.00580451]
[1741918701440,0.57088085,81922.0,81921.0,0.000338]
[1741918701653,0.76604174,81922.0,81921.0,0.000338]
[1741918701866,0.7961886,81922.0,81921.0,0.003338]
[1741918702094,0.556387,81907.0,81906.0,0.0003382]
[1741918703183,0.57092785,81907.0,81906.0,0.0003382]
[1741918703397,0.76418993,81907.0,81906.0,0.0056618]
[1741918704753,0.57093485,81905.0,81904.0,0.0003382]
[1741918706018,0.57093485,81905.0,81904.0,0.0023382]
[1741918707008,0.59007541,81905.0,81904.0,0.0023382]
[1741918708009,0.59007541,81905.0,81904.0,0.0053382]
[1741918708210,0.70035995,81905.0,81904.0,0.0053382]
[1741918708757,0.59007541,81905.0,81904.0,0.0053382]
[1741918710159,0.57553456,81905.0,81904.0,0.0053382]
[1741918713648,0.01914056,81905.0,81904.0,0.0053382]
[1741918714420,0.03134956,81905.0,81904.0,0.0053382]
[1741918714660,0.27553456,81905.0,81904.0,0.0053382]
[1741918714859,0.31206428,81905.0,81904.0,0.0053382]
[1741918715618,0.61206428,81905.0,81904.0,0.0053382]
[1741918716068,0.62660513,81905.0,81904.0,0.0053382]
[1741918716268,0.70550513,81905.0,81904.0,0.0053382]
[1741918716904,0.3,81886.0,81885.0,0.0003382]
[1741918717123,0.312212,81886.0,81885.0,0.0003382]
[1741918718275,0.013212,81886.0,81885.0,0.0053382]
[1741918718490,0.014212,81886.0,81885.0,0.0083382]
[1741918718706,0.013212,81886.0,81885.0,0.0033382]
[1741918718916,0.012212,81886.0,81885.0,0.0003382]
[1741918719125,0.012212,81886.0,81885.0,0.0023382]
[1741918720040,0.03135602,81886.0,81885.0,0.0013382]
[1741918720899,0.03135602,81886.0,81885.0,0.0003382]
[1741918721115,0.03235602,81886.0,81885.0,0.0003382]
[1741918721830,0.03135602,81886.0,81885.0,0.0003382]
[1741918722049,0.03235602,81886.0,81885.0,0.0003382]
[1741918722269,0.03335602,81886.0,81885.0,0.0003382]
[1741918722479,0.04232532,81886.0,81885.0,0.0003382]
[1741918722713,0.3,81888.0,81885.0,0.0003382]
[1741918722930,0.01914408,81886.0,81885.0,0.0003382]
[1741918723362,0.244239,81887.0,81885.0,0.0003382]
[1741918723614,0.012212,81886.0,81885.0,0.0829382]
[1741918723808,0.256452,81887.0,81885.0,0.0829382]
[1741918724109,0.256452,81887.0,81886.0,0.0484]
[1741918724788,0.546238,81888.0,81886.0,0.0484]
[1741918724789,0.546238,81888.0,81886.0,0.05402535]
[1741918725035,0.002,81888.0,81886.0,0.05402535]
[1741918725289,0.3,81889.0,81886.0,0.05402535]
[1741918725290,0.001,81887.0,81886.0,0.05402535]
[1741918725516,0.3,81889.0,81886.0,0.05402535]
[1741918725741,0.556446,81889.0,81886.0,0.05502535]
[1741918725959,0.012211,81888.0,81886.0,0.05502535]
[1741918726190,0.012211,81888.0,81886.0,0.05402535]
[1741918726410,0.012211,81888.0,81886.0,0.05602535]
[1741918726630,0.3,81887.0,81886.0,0.05602535]
[1741918726823,0.3,81887.0,81886.0,0.05402535]
[1741918727307,0.33135458,81887.0,81886.0,0.05402535]
[1741918727560,0.33135458,81887.0,81886.0,0.05602535]
[1741918728039,0.33135458,81887.0,81886.0,0.05502535]
[1741918728278,0.33135458,81887.0,81886.0,0.05702535]
[1741918728520,0.33135458,81887.0,81886.0,0.05602535]
[1741918728757,0.33135458,81887.0,81886.0,0.05802535]
[1741918731749,0.33135458,81887.0,81886.0,0.19690535]
[1741918734166,0.33135458,81887.0,81886.0,0.19724375]
[1741918734380,0.33152378,81887.0,81886.0,0.19724375]
[1741918741312,0.33152378,81887.0,81886.0,0.14884375]
[1741918741987,0.33152378,81887.0,81886.0,0.14684375]
[1741918742361,0.33152378,81887.0,81886.0,0.14784375]
[1741918742770,0.33152378,81887.0,81886.0,0.00696375]
[1741918742952,0.41840786,81887.0,81886.0,0.00796375]
[1741918743150,0.41840786,81887.0,81886.0,0.0033384]
[1741918743350,0.39926428,81887.0,81886.0,0.0033384]
[1741918743565,0.39926428,81887.0,81886.0,0.0023384]
[1741918744028,0.39926428,81887.0,81886.0,0.0033384]
[1741918744430,0.39926428,81887.0,81886.0,0.0003384]
[1741918744807,0.40026428,81887.0,81886.0,0.0003384]
[1741918745460,0.3133802,81887.0,81886.0,0.0003384]
[1741918745870,0.3133802,81887.0,81886.0,0.0475384]
[1741918746080,0.3133802,81887.0,81886.0,0.1260384]
[1741918746292,0.3143802,81887.0,81886.0,0.13167418]
[1741918746689,0.3123802,81887.0,81886.0,0.13167418]
[1741918746866,0.3133802,81887.0,81886.0,0.13167418]
[1741918747063,0.3143802,81887.0,81886.0,0.13167418]
[1741918747472,0.3133802,81887.0,81886.0,0.13267418]
[1741918747672,0.32031271,81887.0,81886.0,0.13267418]
[1741918747854,0.02031271,81887.0,81886.0,0.13367418]
[1741918748879,0.26455171,81887.0,81886.0,0.13367418]
[1741918750178,0.27676271,81887.0,81886.0,0.13367418]
[1741918750986,0.02031271,81887.0,81886.0,0.13367418]
[1741918753131,0.0011692,81887.0,81886.0,0.14710719]
[1741918753360,0.0011692,81887.0,81886.0,0.14710716]
[1741918753605,0.0011692,81887.0,81886.0,0.14588618]
[1741918753831,0.0001692,81887.0,81886.0,0.14610716]
[1741918754033,0.0001692,81887.0,81886.0,0.14710716]
[1741918754268,0.0001692,81887.0,81886.0,0.14510716]
[1741918754483,0.0001692,81887.0,81886.0,0.14610716]
[1741918754690,0.0001692,81887.0,81886.0,0.15010716]
[1741918755022,0.0001692,81887.0,81886.0,0.56860716]
[1741918755221,0.0001692,81887.0,81886.0,0.57038618]
[1741918765273,0.0001692,81887.0,81886.0,1.34590618]
[1741918765489,0.0001692,81887.0,81886.0,1.48474618]
[1741918775922,0.256424,81896.0,81891.0,0.012211]
[1741918776349,0.01914076,81895.0,81892.0,0.00556861]
[1741918776977,0.312211,81893.0,81892.0,0.00556861]
[1741918778093,0.012211,81891.0,81890.0,0.13884]
[1741918780147,0.012211,81887.0,81886.0,0.7798584]
[1741918781498,0.27559257,81887.0,81886.0,0.7808584]
[1741918792969,0.27559257,81887.0,81886.0,0.78621327]
[1741918793997,0.27559257,81887.0,81886.0,0.01069327]
[1741918795450,0.27559257,81887.0,81886.0,0.0053384]
[1741918795660,0.27559257,81887.0,81886.0,0.01069232]
[1741918797217,0.27559257,81887.0,81886.0,0.0053384]
[1741918800906,0.27559257,81887.0,81886.0,0.0013384]
[1741918801670,0.27559257,81887.0,81886.0,0.00669232]
[1741918802670,0.27559257,81887.0,81886.0,0.0013384]
[1741918803597,0.01914257,81887.0,81886.0,0.0013384]
[1741918803803,0.0123801,81891.0,81886.0,0.0013384]
[1741918803804,0.0001691,81891.0,81888.0,0.012211]
[1741918804002,0.0001691,81891.0,81890.0,0.012211]
[1741918804606,0.0001691,81891.0,81890.0,0.01757514]
[1741918804963,0.0001691,81891.0,81890.0,0.09807514]
[1741918805209,0.2566071,81891.0,81890.0,0.08586414]
[1741918806374,0.2566071,81891.0,81890.0,0.08786414]
[1741918807077,0.27574799,81891.0,81890.0,0.08786414]
[1741918807588,0.27574799,81891.0,81890.0,0.01036414]
[1741918808049,0.27574799,81891.0,81890.0,0.005]
[1741918808284,0.2566071,81891.0,81890.0,0.005]
[1741918808543,0.2566071,81891.0,81890.0,0.002]
[1741918809030,0.25645,81887.0,81886.0,0.0003384]
[1741918809491,0.25645,81887.0,81886.0,0.00569332]
[1741918810635,0.0001691,81891.0,81886.0,0.00569332]
[1741918810879,0.2443961,81891.0,81886.0,0.01990532]
[1741918811146,0.244233,81889.0,81886.0,0.00769332]
[1741918811395,0.256444,81889.0,81886.0,0.00769332]
[1741918811628,0.256444,81889.0,81886.0,0.00669332]
[1741918812364,0.27558566,81889.0,81886.0,0.00569332]
[1741918812665,0.03135266,81889.0,81886.0,0.00569332]
[1741918814297,0.01914166,81889.0,81886.0,0.00569332]
[1741918814748,0.26337666,81889.0,81886.0,0.00569332]
[1741918815837,0.256449,81888.0,81886.0,0.00569332]
[1741918816055,0.012211,81888.0,81886.0,0.00569332]
[1741918817198,0.012211,81888.0,81886.0,0.00669332]
[1741918817435,0.012211,81888.0,81886.0,0.00769332]
[1741918820031,0.25645,81887.0,81886.0,0.00769332]
[1741918821116,0.25645,81887.0,81886.0,0.00669332]
[1741918821787,0.25645,81887.0,81886.0,0.00569332]
[1741918823443,0.26337666,81889.0,81886.0,0.00569332]
[1741918823444,0.01914166,81889.0,81886.0,0.00569332]
[1741918823643,0.012211,81887.0,81886.0,0.00569332]
[1741918825361,0.012211,81887.0,81886.0,0.00669332]
[1741918825969,0.012211,81887.0,81886.0,0.0013384]
[1741918826386,0.012211,81887.0,81886.0,0.0023384]
[1741918831715,0.42446893,81887.0,81886.0,0.0023384]
[1741918832394,0.43900978,81887.0,81886.0,0.0023384]
[1741918832636,0.43900978,81887.0,81886.0,0.0013384]
[1741918832882,0.65119385,81886.0,81885.0,6e-07]
[1741918833112,0.81295474,81886.0,81885.0,6e-07]
[1741918834292,0.81395474,81886.0,81885.0,6e-07]
[1741918834681,0.83310325,81886.0,81885.0,6e-07]
[1741918835572,0.83410325,81886.0,81885.0,6e-07]
[1741918836024,0.81495474,81886.0,81885.0,6e-07]
[1741918838951,0.8341034,81886.0,81885.0,6e-07]
[1741918840066,0.8331034,81886.0,81885.0,6e-07]
[1741918841947,0.27760166,81886.0,81885.0,6e-07]
[1741918842986,0.014212,81886.0,81885.0,6e-07]
[1741918843191,0.258453,81886.0,81885.0,0.00752195]
[1741918843399,0.558453,81886.0,81885.0,0.00752195]
[1741918843803,0.558453,81886.0,81885.0,6e-07]
[1741918844011,0.557453,81886.0,81885.0,6e-07]
[1741918844637,0.001,81886.0,81885.0,6e-07]
[1741918844848,0.0003382,81887.0,81885.0,6e-07]
[1741918844978,0.0003382,81887.0,81886.0,0.244241]
[1741918845202,0.0003382,81887.0,81886.0,0.301453]
[1741918845433,0.0003382,81887.0,81886.0,0.38635766]
[1741918845641,0.0003382,81887.0,81886.0,0.41064712]
[1741918845850,0.0003382,81887.0,81886.0,0.40964712]
[1741918846255,0.244215,81895.0,81888.0,0.244235]
[1741918846465,0.256425,81895.0,81889.0,0.13884]
[1741918846681,0.01221,81894.0,81889.0,0.15849298]
[1741918847116,0.01221,81894.0,81889.0,0.14628198]
[1741918847317,0.012211,81891.0,81889.0,0.14628198]
[1741918847521,0.012211,81890.0,81889.0,0.14628198]
[1741918847730,0.012211,81891.0,81889.0,0.14628198]
[1741918847950,0.244224,81892.0,81889.0,0.14628198]
[1741918848364,0.03135307,81893.0,81889.0,0.14628198]
[1741918848805,0.01914207,81893.0,81892.0,0.012211]
[1741918849209,0.01914207,81893.0,81892.0,0.01964252]
[1741918849987,0.01914207,81893.0,81892.0,0.09824252]
[1741918850617,0.01914207,81893.0,81892.0,0.09924252]
[1741918854159,0.01914207,81893.0,81892.0,0.08703152]
[1741918854414,0.03135307,81893.0,81892.0,0.08703152]
[1741918856199,0.01914207,81893.0,81892.0,0.22579152]
[1741918856421,0.01914207,81893.0,81892.0,0.23800252]
[1741918856648,0.01914207,81893.0,81892.0,0.22579152]
[1741918857531,0.01914207,81893.0,81892.0,0.23800252]
[1741918858441,0.03135307,81893.0,81892.0,0.22579152]
[1741918859573,0.01914207,81893.0,81892.0,0.48222652]
[1741918862402,0.02345876,81900.0,81899.0,0.256413]
[1741918862403,0.0001691,81900.0,81899.0,0.256413]
[1741918862632,0.0001691,81900.0,81899.0,0.385113]
[1741918862855,0.012206,81922.0,81915.0,0.244153]
[1741918863093,0.012206,81925.0,81920.0,0.24414]
[1741918863322,0.02127138,81922.0,81919.0,0.061207]
[1741918863570,0.256337,81924.0,81919.0,0.060207]
[1741918863794,0.0219355,81922.0,81920.0,0.00740974]
[1741918864025,0.256337,81924.0,81920.0,0.00740974]
[1741918864265,0.25646049,81924.0,81920.0,0.00740974]
[1741918864965,0.244135,81922.0,81920.0,0.00740974]
[1741918865187,0.012206,81921.0,81920.0,0.00740974]
[1741918865868,0.012207,81918.0,81916.0,0.13876]
[1741918866311,0.256353,81918.0,81917.0,0.00736937]
[1741918866537,0.24414,81920.0,81917.0,0.00736937]
[1741918866764,0.012206,81921.0,81917.0,0.0464]
[1741918866988,0.012206,81921.0,81918.0,0.00736937]
[1741918867268,0.25634,81923.0,81917.0,0.302754]
[1741918867491,0.244138,81921.0,81920.0,0.001]
[1741918867945,0.256344,81921.0,81920.0,0.00836937]
[1741918868184,0.256344,81921.0,81920.0,0.001]
[1741918868415,0.256344,81921.0,81920.0,0.00836937]
[1741918868637,0.256344,81921.0,81920.0,0.00834827]
[1741918868851,0.256344,81921.0,81920.0,0.001]
[1741918869065,0.256356,81917.0,81916.0,0.13876]
[1741918870497,0.256356,81917.0,81916.0,0.14610827]
[1741918870862,0.27549303,81917.0,81916.0,0.14910827]
[1741918871719,0.01913703,81917.0,81916.0,0.14910827]
[1741918871919,0.01913703,81917.0,81916.0,0.16131527]
[1741918872144,0.01913703,81917.0,81916.0,0.23651527]
[1741918872392,0.01913703,81917.0,81916.0,0.23951527]
[1741918873399,0.244125,81926.0,81920.0,0.256345]
[1741918873848,0.244125,81926.0,81921.0,0.00734827]
[1741918874044,0.244127,81925.0,81921.0,0.00734827]
[1741918874253,0.244131,81924.0,81921.0,0.00734827]
[1741918874635,0.256337,81924.0,81918.0,0.256351]
[1741918874861,0.256337,81924.0,81922.0,0.00734827]
[1741918875088,0.256337,81924.0,81918.0,0.256351]
[1741918875292,0.256337,81924.0,81923.0,0.00734827]
[1741918875500,0.256337,81924.0,81918.0,0.256351]
[1741918875681,0.256337,81924.0,81923.0,0.00734827]
[1741918875982,0.256337,81924.0,81918.0,0.256351]
[1741918876218,0.256337,81924.0,81923.0,0.00734827]
[1741918876448,0.244138,81921.0,81919.0,0.00734827]
[1741918876654,0.244138,81921.0,81917.0,0.012207]
[1741918876841,0.244138,81921.0,81920.0,0.00734827]
[1741918876973,0.244138,81921.0,81917.0,0.012207]
[1741918877175,0.244138,81921.0,81918.0,0.00734827]
[1741918877408,0.244138,81921.0,81917.0,0.012207]
[1741918877927,0.244138,81921.0,81918.0,0.00734827]
[1741918878130,0.012206,81924.0,81918.0,0.00734827]
[1741918878131,0.012206,81924.0,81919.0,0.002]
[1741918878336,0.256336,81924.0,81919.0,0.002]
[1741918878552,0.02151992,81926.0,81922.0,0.244133]
[1741918878740,0.0001691,81926.0,81925.0,0.060206]
[1741918878970,0.0001691,81926.0,81925.0,0.135306]
[1741918879166,0.0001691,81926.0,81925.0,0.14265864]
[1741918879996,0.0001691,81926.0,81925.0,0.14465864]
[1741918880759,0.0001691,81926.0,81925.0,0.14665864]
[1741918881394,0.0001691,81926.0,81925.0,0.1705404]
[1741918882191,0.0001691,81926.0,81925.0,0.1583344]
[1741918882650,0.0123751,81926.0,81925.0,0.1583344]
[1741918883270,0.0001691,81926.0,81925.0,0.1583344]
[1741918884286,0.2442911,81926.0,81925.0,0.1583344]
[1741918884623,0.2564971,81926.0,81925.0,0.13445264]
[1741918885556,0.2564971,81926.0,81925.0,0.01135264]
[1741918887702,0.256323,81928.0,81925.0,0.01135264]
[1741918887703,0.20629478,81928.0,81925.0,0.01135264]
[1741918888109,0.20629478,81928.0,81925.0,0.004]
[1741918888488,0.256328,81926.0,81925.0,0.004]
[1741918888709,0.256328,81926.0,81925.0,0.14268]
[1741918888982,0.256328,81926.0,81925.0,0.14802383]
[1741918889186,0.256328,81926.0,81925.0,0.15002383]
[1741918889398,0.21849978,81928.0,81925.0,0.14802383]
[1741918889812,0.02177678,81930.0,81925.0,0.14802383]
[1741918890044,0.02177678,81930.0,81925.0,0.15002383]
[1741918890249,0.256315,81931.0,81925.0,0.15002383]
[1741918890671,0.000169,81926.0,81925.0,0.15002383]
[1741918890882,0.000169,81926.0,81925.0,0.16022983]
[1741918891081,0.000169,81926.0,81925.0,0.16122983]
[1741918891291,0.000169,81926.0,81925.0,0.15922983]
[1741918891697,0.000169,81926.0,81925.0,0.15822983]
[1741918891905,0.000169,81926.0,81925.0,0.14602383]
[1741918892504,0.000169,81926.0,81925.0,0.14802383]
[1741918893243,0.000169,81926.0,81925.0,0.15002383]
[1741918893677,0.000169,81926.0,81925.0,0.40635483]
[1741918897451,0.000169,81926.0,81925.0,0.48395483]
[1741918899698,0.000169,81926.0,81925.0,0.22762383]
[1741918900133,0.000169,81926.0,81925.0,0.48395483]
[1741918900547,0.000169,81926.0,81925.0,0.52925483]
[1741918903055,0.000169,81926.0,81925.0,0.52959303]
[1741918905846,0.012202,81950.0,81944.0,0.012203]
[1741918906052,0.00907734,81951.0,81948.0,0.244054]
[1741918906263,0.00012346,81950.0,81948.0,0.244054]
[1741918906470,0.00012346,81950.0,81949.0,0.00731541]
[1741918906675,0.00012346,81950.0,81949.0,0.08341541]
[1741918907096,0.00512346,81950.0,81949.0,0.09561741]
[1741918907313,0.00512346,81950.0,81949.0,0.09683757]
[1741918907523,0.00012346,81950.0,81949.0,0.09561741]
[1741918907974,0.00512346,81950.0,81949.0,0.09561741]
[1741918908811,0.00512346,81950.0,81949.0,0.14351741]
[1741918909023,0.40994575,81972.0,81949.0,0.14351741]
[1741918909024,0.0001691,81958.0,81957.0,0.256231]
[1741918909227,0.0001693,81969.0,81966.0,0.244001]
[1741918909439,0.0001693,81969.0,81968.0,0.256196]
[1741918909898,0.0001693,81969.0,81968.0,0.26344686]
[1741918910343,0.0001693,81969.0,81968.0,0.39234686]
[1741918911751,0.00058075,81969.0,81968.0,0.93154785]
[1741918911950,0.00058075,81969.0,81968.0,0.93054785]
[1741918912533,0.00058075,81969.0,81968.0,0.81084686]
[1741918912738,0.00058075,81969.0,81968.0,0.81684686]
[1741918913610,0.00058075,81969.0,81968.0,0.81084686]
[1741918913813,0.00058075,81969.0,81968.0,0.81684686]
[1741918914019,0.00058075,81969.0,81968.0,0.82284686]
[1741918914974,0.00058075,81969.0,81968.0,0.81684686]
[1741918915718,0.00058075,81969.0,81968.0,0.81084686]
[1741918916354,0.00058075,81969.0,81968.0,0.82284686]
[1741918916773,0.01277975,81969.0,81968.0,0.09825086]
[1741918916998,0.01277975,81969.0,81968.0,0.15785086]
[1741918918099,0.01277975,81969.0,81968.0,0.15185086]
[1741918919155,0.01277975,81969.0,81968.0,0.14585086]
[1741918919367,0.01277975,81969.0,81968.0,0.15385086]
[1741918921015,0.01277975,81969.0,81968.0,0.1466]
[1741918921463,0.01277975,81969.0,81968.0,0.158799]
[1741918921464,0.00058075,81969.0,81968.0,0.158799]
[1741918921682,0.00058075,81969.0,81968.0,0.16599898]
[1741918922137,0.00058075,81969.0,81968.0,0.24249898]
[1741918922341,0.00058075,81969.0,81968.0,0.28889898]
[1741918923660,0.01277975,81969.0,81968.0,0.27669998]
[1741918923869,0.01277975,81969.0,81968.0,0.15379998]
[1741918924079,0.00058075,81969.0,81968.0,0.15379998]
[1741918926513,0.00058075,81969.0,81968.0,0.16599898]
[1741918927367,0.00058075,81969.0,81968.0,0.16633698]
[1741918927585,0.00058075,81969.0,81968.0,0.15413798]
[1741918927794,0.01277975,81969.0,81968.0,0.15413798]
[1741918930180,0.00058075,81969.0,81968.0,0.39813498]
[1741918930371,0.00058075,81969.0,81968.0,0.41033398]
[1741918931126,0.00058075,81969.0,81968.0,0.15413798]
[1741918931313,0.25677375,81969.0,81968.0,0.15413798]
[1741918932137,0.00058075,81969.0,81968.0,0.15413798]